fUSD/lending_fUSD_20241216
["ID","MTS","AMOUNT","RATE_DAILY","PERIOD"]
[345576977,1734365438981,-5953.92204178,0.00024836,10]
[345576978,1734365438993,-638.3776748,0.00024837,10]
[345576979,1734365439004,-200.0,0.00024837,10]
[345576980,1734365439019,-10443.25730406,0.00024837,10]
[345576981,1734365439030,-32581.58099999,0.00024837,10]
[345576982,1734365439041,-256.2417142,0.00024837,10]
[345576983,1734365439053,-18349.39208261,0.00024837,10]
[345576984,1734365439064,-1004.74851,0.00024838,10]
[345576985,1734365439075,-1130.68461727,0.00024839,10]
[345576986,1734365439086,-200.0,0.00024839,10]
[345576987,1734365439096,-200.0,0.00024839,10]
[345576988,1734365439107,-1004.74851,0.0002484,10]
[345576989,1734365439118,-705.57330037,0.0002484,10]
[345576990,1734365439128,-462.88170144,0.0002484,10]
[345576991,1734365439139,-9450.82717934,0.0002484,10]
[345576992,1734365439151,-973.86520259,0.0002484,10]
[345576993,1734365439164,-64812.01045112,0.00024841,10]
[345576994,1734365439176,-64812.01045112,0.00024841,10]
[345576995,1734365439187,-200.0,0.00024841,10]
[345576996,1734365439199,-528.68081844,0.00024841,10]
[345576997,1734365439210,-17736.95545428,0.00024841,10]
[345576998,1734365439221,-18349.39208261,0.00024842,10]
[345576999,1734365439232,-200.0,0.00024842,10]
[345577000,1734365439243,-1004.74851,0.00024842,10]
[345577001,1734365439254,-751.02798837,0.00024842,10]
[345577002,1734365439265,-18349.39208261,0.00024842,10]
[345577003,1734365439277,-4183.90143809,0.00024842,10]
[345577004,1734365439288,-200.0,0.00024842,10]
[345577005,1734365439299,-200.0,0.00024844,10]
[345577006,1734365439309,-331.81530231,0.00024844,10]
[345577007,1734365439321,-1095.40563217,0.00024844,10]
[345577008,1734365439332,-200.0,0.00024844,10]
[345577009,1734365439343,-270.69796508,0.00024844,2]
[345577010,1734365439354,-526.94445426,0.00024844,10]
[345577011,1734365439365,-2242.77351198,0.00024845,10]
[345577012,1734365439375,-357.4979698,0.00024845,2]
[345577013,1734365439386,-13706.90388692,0.00024847,10]
[345577014,1734365439398,-316.86781939,0.00024847,10]
[345577015,1734365439608,-751.02798837,0.00024847,10]
[345577016,1734365439618,-1130.68461727,0.00024847,10]
[345577017,1734365439628,-2537.18335876,0.00024847,10]
[345577018,1734365439638,-775.52591008,0.00024848,10]
[345577020,1734365439649,-528.68081844,0.00024848,10]
[345577023,1734365439660,-19841.04279628,0.00024848,10]
[345577025,1734365439670,-200.0,0.00024848,10]
[345577027,1734365439679,-1470.75535832,0.00024848,10]
[345577030,1734365439689,-1470.75535832,0.00024848,10]
[345577032,1734365439698,-775.52591008,0.00024848,10]
[345577033,1734365439708,-1004.74851,0.00024848,10]
[345577036,1734365439719,-200.0,0.00024849,10]
[345577037,1734365439728,-2537.18335876,0.00024849,10]
[345577040,1734365439738,-150.0,0.00024849,2]
[345577041,1734365439748,-1130.68461727,0.00024849,10]
[345577043,1734365439759,-1095.40563217,0.00024849,10]
[345577045,1734365439768,-200.0,0.00024849,10]
[345577046,1734365439778,-705.57330037,0.00024849,10]
[345577047,1734365439788,-1471.83200536,0.0002485,10]
[345577048,1734365439798,-331.81530231,0.0002485,10]
[345577049,1734365439809,-19841.04279628,0.0002485,10]
[345577050,1734365439818,-50735.15504674,0.0002485,10]
[345577051,1734365439828,-2537.18335876,0.00024851,10]
[345577052,1734365439838,-280.4143735,0.00024851,10]
[345577053,1734365439849,-18349.39208261,0.00024851,10]
[345577054,1734365439860,-1015.76202112,0.00024851,10]
[345577055,1734365439872,-331.81530231,0.00024851,10]
[345577056,1734365439886,-705.57330037,0.00024852,10]
[345577057,1734365439895,-10443.25730406,0.00024852,10]
[345577058,1734365439905,-440.25996493,0.00024852,10]
[345577059,1734365439914,-42139.84772646,0.00024852,10]
[345577060,1734365439925,-705.57330037,0.00024852,10]
[345577061,1734365439935,-13706.90388692,0.00024852,10]
[345577062,1734365439945,-331.81530231,0.00024853,10]
[345577063,1734365439956,-1095.40563217,0.00024853,10]
[345577064,1734365439966,-17736.95545428,0.00024853,10]
[345577065,1734365439975,-200.0,0.00024853,10]
[345577066,1734365439984,-256.2417142,0.00024853,10]
[345577067,1734365439993,-42139.84772646,0.00024854,10]
[345577068,1734365440003,-28408.67387805,0.00024854,10]
[345577069,1734365440012,-13706.90388692,0.00024854,10]
[345577070,1734365440022,-200.0,0.00024854,10]
[345577071,1734365440033,-270.69796508,0.00024856,2]
[345577072,1734365440042,-10179.34836418,0.00024856,10]
[345577073,1734365440052,-5953.92204178,0.00024856,10]
[345577074,1734365440061,-32581.58099999,0.00024856,10]
[345577075,1734365440070,-19841.04279628,0.00024856,10]
[345577076,1734365440080,-1015.76202112,0.00024857,10]
[345577077,1734365440089,-2869.56840336,0.00024857,10]
[345577078,1734365440098,-1471.83200536,0.00024858,10]
[345577079,1734365440107,-1015.76202112,0.00024858,10]
[345577080,1734365440116,-1471.83200536,0.00024858,10]
[345577081,1734365440126,-44103.61963795,0.00024858,10]
[345577082,1734365440135,-200.0,0.00024858,10]
[345577083,1734365440144,-295.33742206,0.00024859,2]
[345577084,1734365440155,-1470.75535832,0.00024859,10]
[345577085,1734365440166,-13706.90388692,0.00024859,10]
[345577086,1734365440175,-28408.67387805,0.0002486,10]
[345577087,1734365440184,-940.70936186,0.0002486,10]
[345577088,1734365440194,-44103.61963795,0.0002486,10]
[345577089,1734365440204,-17736.95545428,0.0002486,10]
[345577090,1734365440214,-200.0,0.00024861,10]
[345577091,1734365440224,-64812.01045112,0.00024861,10]
[345577092,1734365440233,-2537.18335876,0.00024861,10]
[345577093,1734365440243,-64812.01045112,0.00024861,10]
[345577094,1734365440252,-32581.58099999,0.00024861,10]
[345577095,1734365440262,-2242.77351198,0.00024862,10]
[345577096,1734365440272,-331.81530231,0.00024862,10]
[345577097,1734365440282,-10443.25730406,0.00024862,10]
[345577098,1734365440291,-440.25996493,0.00024862,10]
[345577099,1734365440301,-1130.68461727,0.00024862,10]
[345577100,1734365440311,-775.52591008,0.00024863,10]
[345577101,1734365440321,-280.4143735,0.00024863,10]
[345577102,1734365440331,-10443.25730406,0.00024863,10]
[345577103,1734365440341,-200.0,0.00024863,10]
[345577104,1734365440352,-1015.76202112,0.00024863,10]
[345577105,1734365440362,-751.02798837,0.00024863,10]
[345577107,1734365440373,-1095.40563217,0.00024863,10]
[345577109,1734365440384,-2537.18335876,0.00024863,10]
[345577110,1734365440397,-256.2417142,0.00024863,10]
[345577111,1734365440409,-18349.39208261,0.00024863,10]
[345577112,1734365440419,-280.4143735,0.00024864,10]
[345577113,1734365440430,-526.94445426,0.00024864,10]
[345577114,1734365440441,-2537.18335876,0.00024864,10]
[345577115,1734365440450,-200.0,0.00024864,10]
[345577116,1734365440461,-316.86781939,0.00024865,10]
[345577117,1734365440471,-9450.82717934,0.00024865,10]
[345577119,1734365440481,-1130.68461727,0.00024865,10]
[345577120,1734365440491,-973.86520259,0.00024865,10]
[345577121,1734365440501,-973.86520259,0.00024865,10]
[345577122,1734365440511,-256.2417142,0.00024866,10]
[345577123,1734365440521,-316.86781939,0.00024866,10]
[345577124,1734365440531,-440.25996493,0.00024866,10]
[345577125,1734365440540,-270.69796508,0.00024867,2]
[345577126,1734365440550,-32581.58099999,0.00024867,10]
[345577127,1734365440559,-256.2417142,0.00024867,10]
[345577128,1734365440569,-526.94445426,0.00024867,10]
[345577129,1734365440578,-200.0,0.00024867,10]
[345577130,1734365440587,-940.70936186,0.00024868,10]
[345577131,1734365440597,-28408.67387805,0.00024869,10]
[345577132,1734365440606,-13706.90388692,0.00024869,10]
[345577133,1734365440616,-1470.75535832,0.0002487,10]
[345577134,1734365440625,-940.70936186,0.0002487,10]
[345577135,1734365440635,-280.4143735,0.00024871,10]
[345577136,1734365440644,-440.25996493,0.00024871,10]
[345577137,1734365440654,-2869.56840336,0.00024871,10]
[345577138,1734365440664,-200.0,0.00024871,10]
[345577139,1734365440673,-200.0,0.00024872,10]
[345577140,1734365440682,-17736.95545428,0.00024872,10]
[345577141,1734365440691,-357.4979698,0.00024873,2]
[345577142,1734365440701,-5953.92204178,0.00024873,10]
[345577143,1734365440709,-2242.77351198,0.00024873,10]
[345577144,1734365440719,-300.0,0.00024873,2]
[345577145,1734365440728,-1470.75535832,0.00024873,10]
[345577146,1734365440737,-28408.67387805,0.00024874,10]
[345577147,1734365440747,-1015.76202112,0.00024875,10]
[345577148,1734365440756,-316.86781939,0.00024875,10]
[345577149,1734365440766,-200.0,0.00024875,10]
[345577150,1734365440775,-50735.15504674,0.00024875,10]
[345577151,1734365440784,-28408.67387805,0.00024876,10]
[345577152,1734365440794,-200.0,0.00024876,10]
[345577153,1734365440803,-638.3776748,0.00024876,10]
[345577154,1734365440812,-28408.67387805,0.00024876,10]
[345577155,1734365440822,-13706.90388692,0.00024877,10]
[345577156,1734365440831,-42139.84772646,0.00024877,10]
[345577157,1734365440840,-200.0,0.00024877,10]
[345577158,1734365440850,-4183.90143809,0.00024877,10]
[345577159,1734365440859,-200.0,0.00024877,10]
[345577160,1734365440868,-270.69796508,0.00024878,2]
[345577161,1734365440883,-331.81530231,0.00024878,10]
[345577162,1734365440892,-638.3776748,0.00024878,10]
[345577163,1734365440901,-200.0,0.00024879,10]
[345577164,1734365440914,-6083.04593527,0.00024879,10]
[345577165,1734365440924,-1500.0,0.00024879,2]
[345577166,1734365440934,-6083.04593527,0.00024879,10]
[345577167,1734365440943,-462.88170144,0.0002488,10]
[345577168,1734365440952,-9450.82717934,0.0002488,10]
[345577169,1734365440965,-940.70936186,0.0002488,10]
[345577170,1734365440974,-10179.34836418,0.00024881,10]
[345577171,1734365440984,-775.52591008,0.00024881,10]
[345577172,1734365440993,-462.88170144,0.00024881,10]
[345577173,1734365441002,-940.70936186,0.00024881,10]
[345577174,1734365441012,-1471.83200536,0.00024881,10]
[345577175,1734365441021,-1015.76202112,0.00024882,10]
[345577176,1734365441030,-1470.75535832,0.00024882,10]
[345577177,1734365441039,-1095.40563217,0.00024882,10]
[345577178,1734365441049,-200.0,0.00024883,10]
[345577179,1734365441058,-50735.15504674,0.00024883,10]
[345577180,1734365441068,-2869.56840336,0.00024883,10]
[345577181,1734365441077,-973.86520259,0.00024883,10]
[345577182,1734365441087,-4183.90143809,0.00024883,10]
[345577183,1734365441096,-2242.77351198,0.00024884,10]
[345577184,1734365441105,-775.52591008,0.00024884,10]
[345577185,1734365441114,-44103.61963795,0.00024885,10]
[345577186,1734365441123,-18349.39208261,0.00024885,10]
[345577187,1734365441132,-200.0,0.00024885,10]
[345577188,1734365441141,-2869.56840336,0.00024885,10]
[345577189,1734365441151,-440.25996493,0.00024885,10]
[345577190,1734365441162,-5953.92204178,0.00024886,10]
[345577191,1734365441171,-316.86781939,0.00024886,10]
[345577192,1734365441181,-5953.92204178,0.00024886,10]
[345577193,1734365441190,-2869.56840336,0.00024886,10]
[345577194,1734365441199,-9450.82717934,0.00024887,10]
[345577195,1734365441208,-9450.82717934,0.00024887,10]
[345577196,1734365441218,-42139.84772646,0.00024888,10]
[345577197,1734365441227,-17736.95545428,0.00024888,10]
[345577198,1734365441236,-64812.01045112,0.00024888,10]
[345577199,1734365441245,-10179.34836418,0.00024888,10]
[345577200,1734365441254,-4183.90143809,0.00024888,10]
[345577201,1734365441263,-270.69796508,0.00024889,2]
[345577202,1734365441272,-200.0,0.00024889,10]
[345577203,1734365441281,-10179.34836418,0.00024889,10]
[345577204,1734365441291,-50735.15504674,0.00024889,10]
[345577205,1734365441299,-638.3776748,0.00024889,10]
[345577206,1734365441309,-1004.74851,0.00024889,10]
[345577207,1734365441318,-751.02798837,0.0002489,10]
[345577208,1734365441327,-42139.84772646,0.0002489,10]
[345577209,1734365441336,-4183.90143809,0.0002489,10]
[345577210,1734365441345,-50735.15504674,0.0002489,10]
[345577211,1734365441355,-5000.0,0.0002489,2]
[345577212,1734365441364,-42139.84772646,0.00024891,10]
[345577213,1734365441373,-9450.82717934,0.00024891,10]
[345577214,1734365441383,-10179.34836418,0.00024891,10]
[345577215,1734365441393,-200.0,0.00024891,10]
[345577216,1734365441403,-200.0,0.00024892,10]
[345577217,1734365441414,-264.20246487,0.00024892,2]
[345577218,1734365441424,-1130.68461727,0.00024892,10]
[345577219,1734365441435,-316.86781939,0.00024892,10]
[345577220,1734365441445,-1500.0,0.00024894,2]
[345577221,1734365441454,-150.0,0.00024894,2]
[345577222,1734365441464,-1471.83200536,0.00024894,10]
[345577223,1734365441475,-10179.34836418,0.00024894,10]
[345577224,1734365441484,-17736.95545428,0.00024894,10]
[345577225,1734365441492,-462.88170144,0.00024895,10]
[345577226,1734365441501,-32581.58099999,0.00024895,10]
[345577227,1734365441511,-526.94445426,0.00024896,10]
[345577228,1734365441520,-705.57330037,0.00024896,10]
[345577229,1734365441529,-6083.04593527,0.00024896,10]
[345577230,1734365441538,-19841.04279628,0.00024896,10]
[345577231,1734365441547,-751.02798837,0.00024896,10]
[345577232,1734365441556,-64812.01045112,0.00024896,10]
[345577233,1734365441566,-200.0,0.00024897,10]
[345577234,1734365441575,-1095.40563217,0.00024897,10]
[345577235,1734365441584,-256.2417142,0.00024897,10]
[345577236,1734365441593,-44103.61963795,0.00024898,10]
[345577237,1734365441602,-775.52591008,0.00024898,10]
[345577238,1734365441612,-5953.92204178,0.00024899,10]
[345577239,1734365441622,-2886.0245,0.00024899,2]
[345577240,1734365441632,-6360.86920256,0.00024899,2]
[345577241,1734365441641,-161.07221609,0.00024899,2]
[345577242,1734365441651,-638.3776748,0.00024899,10]
[345577243,1734365441663,-6360.86920254,0.000249,2]
[345577244,1734365441673,-81007.1583,0.000249,2]
[345577245,1734365441682,-655.54292501,0.000249,2]
[345577246,1734365441691,-176.50499016,0.000249,2]
[345577247,1734365441700,-201.53260833,0.000249,7]
[345577248,1734365441710,-387.8560856,0.000249,2]
[345577249,1734365441719,-295.33742206,0.000249,2]
[345577250,1734365441729,-6360.86920254,0.000249,2]
[345577251,1734365441740,-176.68,0.000249,7]
[345577252,1734365441750,-235.97050378,0.000249,2]
[345577253,1734365441761,-269.6811465,0.000249,2]
[345577254,1734365441771,-270.69796508,0.000249,2]
[345577255,1734365441781,-357.4979698,0.000249,2]
[345577256,1734365441792,-1315.7747187,0.000249,2]
[345577257,1734365441802,-401.45,0.000249,31]
[345577258,1734365441811,-401.45,0.000249,31]
[345577259,1734365441822,-401.45,0.000249,31]
[345577260,1734365441831,-401.45,0.000249,31]
[345577261,1734365441840,-401.45,0.000249,31]
[345577262,1734365441850,-401.45,0.000249,31]
[345577263,1734365441859,-401.45,0.000249,31]
[345577264,1734365441868,-401.45,0.000249,31]
[345577265,1734365441881,-401.45,0.000249,31]
[345577266,1734365441891,-401.45,0.000249,31]
[345577267,1734365441900,-401.45,0.000249,31]
[345577268,1734365441913,-401.45,0.000249,31]
[345577269,1734365441926,-401.45,0.000249,31]
[345577270,1734365441935,-401.45,0.000249,31]
[345577271,1734365441944,-401.45,0.000249,31]
[345577272,1734365441953,-401.45,0.000249,31]
[345577273,1734365441964,-150.0,0.00024903,2]
[345577274,1734365441973,-490.55,0.00024911,4]
[345577275,1734365441982,-5820.18,0.00024911,4]
[345577276,1734365441991,-300.0,0.00024912,2]
[345577277,1734365442000,-1500.0,0.00024922,2]
[345577278,1734365442009,-1500.0,0.00024925,2]
[345577279,1734365442019,-150.0,0.00024926,2]
[345577280,1734365442028,-150.0,0.00024927,2]
[345577281,1734365442037,-153.0,0.00024927,2]
[345577282,1734365442046,-153.0,0.00024927,2]
[345577283,1734365442056,-153.0,0.00024927,2]
[345577284,1734365442065,-153.0,0.00024928,2]
[345577285,1734365442074,-153.0,0.00024928,2]
[345577286,1734365442083,-153.0,0.00024928,2]
[345577287,1734365442092,-153.0,0.00024928,2]
[345577288,1734365442102,-153.0,0.00024932,2]
[345577289,1734365442111,-153.0,0.00024932,2]
[345577290,1734365442120,-153.0,0.00024932,2]
[345577291,1734365442129,-153.0,0.00024932,2]
[345577292,1734365442138,-150.0,0.00024951,2]
[345577293,1734365442148,-300.0,0.00024953,2]
[345577294,1734365442159,-150.0,0.00024958,2]
[345577295,1734365442169,-150.0,0.00024962,2]
[345577296,1734365442178,-150.0,0.00024965,2]
[345577297,1734365442187,-178.0,0.0002497,120]
[345577298,1734365442196,-282.0,0.0002497,30]
[345577299,1734365442205,-178.0,0.0002497,120]
[345577300,1734365442214,-282.0,0.0002497,30]
[345577301,1734365442223,-250.0,0.0002497,2]
[345577302,1734365442232,-250.0,0.0002497,2]
[345577303,1734365442241,-300.0,0.0002497,2]
[345577304,1734365442250,-582.01413331,0.0002497,2]
[345577305,1734365442259,-162.23550458,0.00024973,2]
[345577306,1734365442268,-1500.0,0.00024974,2]
[345577307,1734365442278,-150.0,0.00024976,2]
[345577308,1734365442287,-150.0,0.00024977,2]
[345577309,1734365442295,-500.0,0.00024979,4]
[345577310,1734365442305,-500.0,0.00024979,4]
[345577311,1734365442314,-198.99,0.0002498,120]
[345577312,1734365442323,-178.0,0.0002498,120]
[345577313,1734365442332,-282.0,0.0002498,30]
[345577314,1734365442343,-178.0,0.0002498,120]
[345577315,1734365442355,-282.0,0.0002498,30]
[345577316,1734365442364,-178.0,0.0002498,120]
[345577317,1734365442374,-282.0,0.0002498,30]
[345577318,1734365442384,-178.0,0.0002498,120]
[345577319,1734365442393,-285.0,0.0002498,30]
[345577320,1734365442403,-151.24,0.0002498,2]
[345577321,1734365442414,-585.860668,0.0002498,2]
[345577322,1734365442423,-150.0,0.00024981,2]
[345577323,1734365442433,-500.0,0.00024984,4]
[345577324,1734365442442,-500.0,0.00024984,4]
[345577325,1734365442452,-500.0,0.00024985,4]
[345577326,1734365442461,-500.0,0.00024985,4]
[345577327,1734365442471,-17419.0,0.00024986,2]
[345577328,1734365442480,-22017.0,0.00024986,2]
[345577329,1734365442490,-28358.0,0.00024986,2]
[345577330,1734365442500,-150.0,0.00024987,2]
[345577331,1734365442509,-150.0,0.00024987,2]
[345577332,1734365442519,-151.24,0.00024989,2]
[345577333,1734365442528,-185.36,0.00024989,4]
[345577334,1734365442537,-173.96154606,0.00024989,2]
[345577335,1734365442548,-151.24,0.0002499,2]
[345577340,1734365442675,-151.24,0.0002499,2]
[345577341,1734365442686,-151.24,0.0002499,2]
[345577342,1734365442696,-151.24,0.0002499,2]
[345577344,1734365442705,-151.24,0.0002499,2]
[345577346,1734365442714,-151.24,0.0002499,2]
[345577349,1734365442723,-151.24,0.0002499,2]
[345577352,1734365442733,-151.24,0.0002499,2]
[345577355,1734365442742,-151.24,0.0002499,2]
[345577358,1734365442752,-151.24,0.0002499,2]
[345577361,1734365442761,-151.24,0.0002499,2]
[345577364,1734365442770,-585.860668,0.0002499,2]
[345577367,1734365442780,-585.860668,0.0002499,2]
[345577369,1734365442789,-150.5,0.0002499,120]
[345577371,1734365442798,-150.5,0.0002499,120]
[345577372,1734365442808,-178.0,0.0002499,120]
[345577374,1734365442817,-282.0,0.0002499,30]
[345577376,1734365442826,-178.0,0.0002499,120]
[345577377,1734365442835,-282.0,0.0002499,30]
[345577379,1734365442845,-178.0,0.0002499,120]
[345577381,1734365442854,-282.0,0.0002499,30]
[345577382,1734365442863,-178.0,0.0002499,120]
[345577383,1734365442872,-282.0,0.0002499,30]
[345577384,1734365442882,-5417.92141572,0.0002499,7]
[345577385,1734365442897,-250000.0,0.0002499,7]
[345577386,1734365442909,-151.24,0.0002499,2]
[345577387,1734365442918,-151.24,0.0002499,2]
[345577388,1734365442928,-151.24,0.0002499,2]
[345577389,1734365442937,-151.24,0.0002499,2]
[345577390,1734365442946,-151.24,0.0002499,2]
[345577391,1734365442957,-151.24,0.0002499,2]
[345577392,1734365442968,-151.24,0.0002499,2]
[345577393,1734365442977,-500.0,0.00024994,4]
[345577394,1734365442986,-269.92967123,0.00024994,4]
[345577395,1734365442996,-500.0,0.00024994,4]
[345577396,1734365443005,-178.38871546,0.00024994,4]
[345577397,1734365443014,-500.0,0.00024994,4]
[345577398,1734365443024,-572.64199033,0.00024994,4]
[345577399,1734365443033,-500.0,0.00024994,4]
[345577400,1734365443043,-426.89156732,0.00024994,4]
[345577401,1734365443053,-7970.2949612,0.00024995,2]
[345577402,1734365443063,-6523.1763129,0.00024995,2]
[345577403,1734365443074,-5076.0576646,0.00024995,2]
[345577404,1734365443085,-3628.9390164,0.00024995,2]
[345577405,1734365443096,-2181.8203681,0.00024995,2]
[345577406,1734365443106,-734.7017198,0.00024995,2]
[345577407,1734365443116,-18278.0325061,0.00024995,2]
[345577408,1734365443126,-14903.5053762,0.00024995,2]
[345577409,1734365443136,-11528.9782463,0.00024995,2]
[345577410,1734365443146,-8154.4511163,0.00024995,2]
[345577411,1734365443158,-4779.9239864,0.00024995,2]
[345577412,1734365443168,-1405.3968564,0.00024995,2]
[345577413,1734365443177,-2524.5214209,0.00024995,2]
[345577414,1734365443187,-2058.4391978,0.00024995,2]
[345577416,1734365443197,-1592.3569746,0.00024995,2]
[345577417,1734365443207,-1126.2747515,0.00024995,2]
[345577418,1734365443217,-660.1925283,0.00024995,2]
[345577419,1734365443226,-194.1103052,0.00024995,2]
[345577420,1734365443236,-150.70954901,0.00024996,2]
[345577421,1734365443246,-500.0,0.00024998,4]
[345577422,1734365443255,-5820.18,0.00024998,4]
[345577423,1734365443264,-500.0,0.00024998,4]
[345577424,1734365443273,-500.0,0.00024998,4]
[345577425,1734365443283,-150.0,0.00024999,30]
[345577426,1734365443292,-2000.0,0.00024999,2]
[345577427,1734365443302,-2000.0,0.00024999,2]
[345577428,1734365443312,-500.0,0.00024999,4]
[345577429,1734365443322,-500.0,0.00024999,4]
[345577431,1734365443332,-500.0,0.00024999,4]
[345577433,1734365443341,-500.0,0.00024999,4]
[345577434,1734365443351,-217.10584333,0.00024999,4]
[345577436,1734365443361,-500.0,0.00024999,4]
[345577438,1734365443371,-500.0,0.00024999,4]
[345577439,1734365443382,-500.0,0.00024999,4]
[345577440,1734365443392,-500.0,0.00024999,4]
[345577441,1734365443402,-577.1400002,0.00024999,4]
[345577442,1734365443415,-535.77,0.00024999,2]
[345577443,1734365443424,-500.0,0.00024999,4]
[345577444,1734365443434,-5000.0,0.00024999,20]
[345577445,1734365443444,-500.0,0.00024999,4]
[345577446,1734365443454,-500.0,0.00024999,4]
[345577447,1734365443464,-500.0,0.00024999,4]
[345577448,1734365443474,-335.91692261,0.00024999,4]
[345577449,1734365443484,-500.0,0.00024999,4]
[345577450,1734365443494,-500.0,0.00024999,4]
[345577451,1734365443504,-500.0,0.00024999,4]
[345577452,1734365443514,-500.0,0.00024999,4]
[345577453,1734365443523,-500.0,0.00024999,4]
[345577454,1734365443533,-500.0,0.00024999,4]
[345577455,1734365443543,-500.0,0.00024999,4]
[345577456,1734365443552,-500.0,0.00024999,4]
[345577457,1734365443562,-500.0,0.00024999,4]
[345577458,1734365443571,-500.0,0.00024999,4]
[345577459,1734365443580,-500.0,0.00024999,4]
[345577460,1734365443590,-500.0,0.00024999,4]
[345577461,1734365443599,-500.0,0.00024999,4]
[345577462,1734365443610,-500.0,0.00024999,4]
[345577463,1734365443620,-500.0,0.00024999,4]
[345577464,1734365443629,-500.0,0.00024999,4]
[345577465,1734365443639,-500.0,0.00024999,4]
[345577466,1734365443648,-332.98817235,0.00024999,4]
[345577467,1734365443659,-5820.18,0.00024999,4]
[345577468,1734365443668,-5820.18,0.00024999,4]
[345577469,1734365443677,-5820.18,0.00024999,4]
[345577470,1734365443686,-5820.18,0.00024999,4]
[345577471,1734365443695,-5820.18,0.00024999,4]
[345577472,1734365443706,-5820.18,0.00024999,4]
[345577473,1734365443716,-5820.18,0.00024999,4]
[345577474,1734365443726,-5820.18,0.00024999,4]
[345577475,1734365443735,-5820.18,0.00024999,4]
[345577476,1734365443745,-5820.18,0.00024999,4]
[345577477,1734365443754,-5820.18,0.00024999,4]
[345577478,1734365443763,-5820.18,0.00024999,4]
[345577479,1734365443773,-5820.18,0.00024999,4]
[345577480,1734365443784,-5820.18,0.00024999,4]
[345577481,1734365443795,-5820.18,0.00024999,4]
[345577482,1734365443806,-5820.18,0.00024999,4]
[345577483,1734365443816,-5820.18,0.00024999,4]
[345577484,1734365443826,-5820.18,0.00024999,4]
[345577485,1734365443835,-5820.18,0.00024999,4]
[345577486,1734365443844,-5820.18,0.00024999,4]
[345577487,1734365443854,-5820.27,0.00024999,4]
[345577488,1734365443863,-999.0,0.00024999,2]
[345577489,1734365443874,-500.0,0.00024999,4]
[345577490,1734365443884,-500.0,0.00024999,4]
[345577491,1734365443896,-500.0,0.00024999,4]
[345577493,1734365443909,-500.0,0.00024999,4]
[345577495,1734365443919,-500.0,0.00024999,4]
[345577496,1734365443929,-500.0,0.00024999,4]
[345577498,1734365443939,-560.38379913,0.00024999,4]
[345577500,1734365443949,-329.0,0.00024999,2]
[345577502,1734365443960,-394.08110443,0.00024999,2]
[345577503,1734365443971,-19850.0,0.00025,2]
[345577504,1734365443980,-166.13352734,0.00025,2]
[345577505,1734365443990,-39621.62664189,0.00025,2]
[345577506,1734365444000,-3069782.97732772,0.00025,4]
[345577507,1734365444009,-153.0,0.00025,2]
[345577508,1734365444019,-153.0,0.00025,2]
[345577509,1734365444029,-153.0,0.00025,2]
[345577510,1734365444038,-153.0,0.00025,2]
[345577511,1734365444048,-153.0,0.00025,2]
[345577512,1734365444058,-153.0,0.00025,2]
[345577513,1734365444068,-153.0,0.00025,2]
[345577514,1734365444078,-153.0,0.00025,2]
[345577515,1734365444087,-250.0,0.00025,2]
[345577516,1734365444097,-153.0,0.00025,2]
[345577517,1734365444108,-153.0,0.00025,2]
[345577518,1734365444117,-153.0,0.00025,2]
[345577519,1734365444128,-153.0,0.00025,2]
[345577520,1734365444137,-164.97,0.00025,2]
[345577521,1734365444147,-11645321.65778952,0.00025,2]
[345577522,1734365444198,-972.02,0.00025,2]
[345577523,1734365444215,-4990.76153689,0.00025,2]
[345577524,1734365444227,-3956.8,0.00025,2]
[345577525,1734365444238,-780.94706351,0.00025,2]
[345577526,1734365444267,-366.72121187,0.00024839,2]
[345577527,1734365444276,-406.52281825,0.000249,2]
[345577528,1734365444286,-69094.10126988,0.00025,2]
[345577529,1734365444298,-25653.53827861,0.00025,2]